bitfinex/quotes_ETHUSD_20260129
["timestamp","ask_amount","ask_price","bid_price","bid_amount"]
[1769691942044,0.85045584,2939.6,2938.6,1.73101867]
[1769691942210,0.713,2939.5,2938.6,1.73101867]
[1769691944445,0.85051371,2939.4,2938.6,1.73101867]
[1769691945216,0.713,2939.3,2938.6,1.73101867]
[1769691945745,0.715,2939.3,2938.8,1.73201867]
[1769691946443,1.56556298,2939.3,2938.8,1.73201867]
[1769691951952,1.5655612,2939.3,2938.8,1.73201867]
[1769691960238,0.002,2939.1,2938.8,1.73201867]
[1769691970672,0.002,2939.1,2938.8,0.001]
[1769691972672,0.002,2939.1,2938.8,1.66442497]
[1769691972974,0.002,2938.9,2938.8,1.66442497]
[1769691973351,0.715,2938.9,2938.8,1.66442497]
[1769691973672,0.002,2939.1,2938.8,1.66442497]
[1769691973842,0.713,2939.0,2938.8,1.66442497]
[1769691974436,0.002,2939.1,2938.8,1.66442497]
[1769691974641,0.713,2939.0,2938.8,1.66442497]
[1769691975663,0.713,2938.9,2938.8,1.66442497]
[1769691979879,0.002,2939.1,2938.8,1.66442497]
[1769691980067,0.713,2939.0,2938.8,1.66442497]
[1769691984185,0.002,2939.1,2938.8,1.66442497]
[1769691984387,0.713,2939.0,2938.8,1.66442497]
[1769691984573,0.713,2938.9,2938.8,1.66442497]
[1769691988894,0.002,2939.1,2938.8,1.66442497]
[1769691989293,0.002,2939.1,2938.9,1.57142392]
[1769691989595,0.713,2939.1,2938.9,1.57142392]
[1769691989892,0.002,2939.3,2939.0,1.57142392]
[1769691990098,0.715,2939.3,2939.0,1.57142392]
[1769691990263,0.715,2939.3,2938.9,0.85064764]
[1769691990264,0.713,2939.3,2939.1,1.57142392]
[1769691990601,0.713,2939.4,2939.1,1.57142392]
[1769691996113,0.002,2939.5,2939.1,1.57142392]
[1769691996418,0.715,2939.5,2939.1,1.57142392]
[1769691997516,0.002,2939.5,2939.1,1.57142392]
[1769691997689,0.002,2939.2,2939.1,1.57142392]
[1769692003188,0.002,2939.2,2939.1,2.42202444]
[1769692006318,0.002,2939.4,2939.1,2.42202444]
[1769692006509,0.002,2939.4,2939.2,1.58597341]
[1769692009842,0.002,2939.4,2939.3,0.001]
[1769692013315,0.002,2939.4,2938.9,0.85063864]
[1769692013649,0.002,2939.4,2938.9,0.850641]
[1769692013815,0.002,2939.4,2938.9,2.43661441]
[1769692017415,0.002,2939.4,2938.9,1.58597341]
[1769692017614,0.002,2939.4,2938.9,0.85065501]
[1769692017817,0.002,2939.4,2938.9,0.85065739]
[1769692018816,1.32154056,2939.3,2938.5,0.001]
[1769692019010,1.32154056,2939.3,2938.3,0.001]
[1769692019550,1.3225577,2939.1,2938.3,0.001]
[1769692021753,2.17518023,2939.0,2938.3,0.001]
[1769692022134,1.32455077,2939.0,2938.3,0.001]
[1769692023950,1.32551611,2939.1,2938.3,0.001]
[1769692024130,1.32551611,2939.1,2938.3,1.6770333]
[1769692024326,0.713,2939.0,2938.3,1.6770333]
[1769692025751,1.5636317,2939.0,2938.3,1.6770333]
[1769692026854,0.713,2939.0,2938.3,2.52786525]
[1769692029533,1.56363021,2939.0,2938.3,1.6770333]
[1769692030560,0.713,2939.0,2938.3,2.52785798]
[1769692031172,2.17613178,2939.1,2938.3,2.52785798]
[1769692031173,0.85060274,2939.1,2938.4,1.6760333]
[1769692031338,0.713,2938.9,2938.4,1.6760333]
[1769692033173,0.713,2938.9,2938.5,1.6760333]
[1769692033478,0.713,2938.9,2938.5,1.6770333]
[1769692033775,0.002,2938.8,2938.5,1.6770333]
[1769692034460,0.002,2939.0,2938.6,1.6760333]
[1769692035742,0.002,2939.0,2938.6,2.52677685]
[1769692036555,0.002,2939.0,2938.7,1.6760333]
[1769692041877,0.002,2939.0,2938.5,2.52778624]
[1769692042092,0.002,2939.0,2938.5,0.001]
[1769692045049,1.3409646,2938.8,2937.9,1.6760333]
[1769692045283,1.3409646,2938.8,2937.9,2.52697431]
[1769692045648,0.8507163,2938.7,2937.9,2.52697431]
[1769692047266,1.3409646,2938.8,2937.9,2.52697431]
[1769692047267,0.713,2938.6,2938.0,1.6271615]
[1769692048647,0.713,2938.6,2937.9,0.85092898]
[1769692048852,1.56374745,2938.6,2937.8,2.47911961]
[1769692049286,1.56374745,2938.6,2937.8,1.6281615]
[1769692049494,2.91086327,2938.6,2937.8,1.6281615]
[1769692051486,2.91086327,2938.6,2937.8,0.001]
[1769692052090,2.91086327,2938.6,2937.8,1.61600199]
[1769692054986,1.35631952,2938.5,2937.8,0.001]
[1769692055184,1.35631952,2938.5,2937.6,1.61600199]
[1769692055185,1.35631952,2938.5,2937.6,0.001]
[1769692057652,1.35760882,2938.3,2937.6,0.001]
[1769692058184,1.35623508,2938.2,2937.6,0.001]
[1769692058391,1.35623508,2938.2,2937.2,1.61600199]
[1769692058392,1.35623508,2937.9,2937.2,0.001]
[1769692058608,1.35623508,2937.9,2936.9,0.001]
[1769692059058,1.35623508,2937.9,2937.8,0.001]
[1769692059251,1.50627275,2937.9,2936.9,0.001]
[1769692059459,1.35689466,2937.7,2936.9,0.001]
[1769692059658,0.15003767,2937.8,2936.9,0.001]
[1769692059659,1.35689466,2937.5,2936.9,0.001]
[1769692059886,1.35733924,2937.3,2936.7,0.001]
[1769692060075,1.35633924,2937.0,2936.3,0.001]
[1769692060271,0.713,2936.9,2936.3,1.61600199]
[1769692061459,0.713,2936.8,2936.3,1.61600199]
[1769692061881,0.713,2936.8,2936.3,0.001]
[1769692062081,1.56427035,2936.8,2936.3,0.001]
[1769692063695,0.713,2937.0,2936.3,1.61600199]
[1769692064059,0.713,2937.0,2936.5,1.61500199]
[1769692070683,0.713,2937.0,2936.5,2.46634678]
[1769692070990,0.713,2937.0,2936.6,1.61500199]
[1769692071163,0.713,2937.0,2936.7,1.61600199]
[1769692071869,0.85112442,2937.3,2936.7,1.61600199]
[1769692072070,0.713,2937.2,2936.7,1.61600199]
[1769692072487,0.713,2937.1,2936.7,1.61600199]
[1769692073965,0.713,2937.1,2936.8,1.61500199]
[1769692074278,0.713,2937.2,2936.8,1.61500199]
[1769692076471,0.713,2937.4,2937.0,1.61678563]
[1769692079695,0.713,2937.4,2936.8,1.61678563]
[1769692080292,0.713,2937.4,2936.7,0.85228026]
[1769692080497,0.713,2937.4,2936.7,1.61778563]
[1769692082209,1.47941112,2937.3,2936.4,1.61678563]
[1769692082423,1.56409634,2937.4,2936.4,1.61678563]
[1769692082703,1.56409634,2937.4,2936.6,1.61678563]
[1769692083104,0.713,2937.4,2936.6,1.61678563]
[1769692083404,0.713,2937.3,2936.6,1.61678563]
[1769692084317,0.002,2937.2,2936.6,1.61678563]
[1769692084816,0.002,2937.2,2936.7,1.61678563]
[1769692087121,0.002,2937.2,2936.7,2.46806759]
[1769692088088,0.002,2937.2,2936.8,1.61678563]
[1769692089023,0.715,2937.2,2936.8,1.61678563]
[1769692091824,0.715,2937.2,2936.6,2.468089]
[1769692092526,0.715,2937.2,2936.7,0.85129531]
[1769692093431,0.715,2937.2,2936.6,2.46809139]
[1769692095732,1.56615356,2937.2,2936.4,2.46814794]
[1769692096232,3.05484504,2937.2,2936.3,0.85239213]
[1769692096414,0.002,2937.0,2936.3,0.85239213]
[1769692097127,1.48936769,2937.0,2936.3,0.001]
[1769692099262,1.488816,2936.8,2936.3,0.001]
[1769692101350,0.85129567,2936.7,2936.3,0.001]
[1769692102439,2.34429161,2936.7,2936.3,0.001]
[1769692102808,1.49299594,2936.6,2936.0,0.001]
[1769692103008,0.002,2937.0,2936.4,1.62574962]
[1769692103214,0.713,2936.9,2936.4,1.62574962]
[1769692103410,0.713,2936.9,2936.5,1.74617046]
[1769692103844,0.002,2937.0,2936.6,1.74617046]
[1769692104143,0.713,2936.9,2936.6,1.74617046]
[1769692104356,0.715,2937.0,2936.5,1.74617046]
[1769692106430,0.715,2937.0,2936.6,1.64843791]
[1769692108221,0.002,2936.8,2936.6,1.64843791]
[1769692109029,0.715,2937.0,2936.6,1.64843791]
[1769692111052,0.715,2937.0,2936.4,0.85136431]
[1769692111421,0.715,2937.0,2936.4,1.64843791]
[1769692111732,0.715,2937.0,2936.3,0.85140434]
[1769692111944,0.002,2937.0,2936.6,1.62194163]
[1769692112841,0.002,2937.0,2936.4,0.85138061]
[1769692113237,0.002,2937.0,2936.4,2.47332224]
[1769692115658,0.002,2937.0,2936.5,1.62194163]
[1769692120283,0.002,2937.0,2936.7,0.001]
[1769692120462,0.002,2936.8,2936.7,0.001]
[1769692140684,0.002,2937.2,2936.8,1.76565533]
[1769692140875,0.002,2937.4,2937.0,1.76565533]
[1769692142290,0.002,2937.4,2937.1,1.76565533]
[1769692143388,0.002,2937.4,2936.9,2.61687129]
[1769692143711,0.002,2937.4,2936.9,1.76565533]
[1769692144010,0.002,2937.4,2936.7,2.61793645]
[1769692144408,0.002,2937.4,2936.7,1.76665533]
[1769692144714,0.002,2937.2,2936.7,2.61794657]
[1769692145212,0.002,2937.2,2936.7,0.001]
[1769692145807,1.51615543,2937.2,2936.7,0.001]
[1769692146209,2.36732797,2937.2,2936.7,0.001]
[1769692147406,1.51391774,2937.0,2936.1,1.76565533]
[1769692149331,0.85123769,2936.9,2936.2,1.76565533]
[1769692153036,0.002,2937.2,2936.3,1.76565533]
[1769692153232,0.002,2937.4,2936.8,1.76565533]
[1769692155898,0.002,2937.2,2936.8,1.76565533]
[1769692156434,0.002,2937.2,2936.6,2.61695862]
[1769692156633,0.002,2937.2,2936.6,1.76565533]
[1769692156832,0.002,2937.2,2936.6,2.61697386]
[1769692157021,0.002,2937.2,2936.6,1.76565533]
[1769692157899,0.002,2937.2,2936.6,2.6169718]
[1769692158427,0.002,2937.2,2936.7,1.76565533]
[1769692166146,0.002,2937.2,2936.7,2.61694734]
[1769692166321,0.002,2937.2,2936.8,1.69883244]
[1769692168465,0.002,2937.2,2936.9,0.001]
[1769692170350,1.51917219,2937.2,2936.3,2.55023156]
[1769692172160,0.85117973,2937.1,2936.3,2.55023156]
[1769692172569,0.85117973,2937.1,2936.3,1.69883244]
[1769692173060,0.85117973,2937.1,2936.3,2.55023405]
[1769692173732,0.85117973,2937.1,2936.3,1.69883244]
[1769692174179,0.85117973,2937.1,2936.3,2.55023487]
[1769692174979,0.715,2937.2,2936.4,1.61257962]
[1769692175273,1.5661538,2937.2,2936.4,1.61257962]
[1769692175476,3.08535799,2937.2,2936.4,1.61257962]
[1769692175781,1.51920419,2937.1,2936.3,0.85140243]
[1769692176688,1.51920419,2937.1,2936.2,1.61257962]
[1769692176850,1.51952736,2937.0,2936.0,0.001]
[1769692178765,1.52017471,2936.8,2936.0,0.001]
[1769692180900,1.52017471,2936.8,2936.5,0.001]
[1769692181058,1.50712026,2936.6,2936.0,0.001]
[1769692183181,0.85135365,2936.5,2936.0,0.001]
[1769692191170,1.446327,2936.8,2936.0,0.001]
[1769692193197,1.446327,2936.8,2936.2,0.001]
[1769692193402,0.85129567,2936.7,2936.2,0.001]
[1769692195705,0.714,2936.6,2936.2,1.69543026]
[1769692196678,0.85324357,2936.9,2936.2,1.69543026]
[1769692196895,0.714,2936.8,2936.2,1.69543026]
[1769692200317,0.714,2936.8,2936.2,0.001]
[1769692202237,0.85129567,2936.7,2936.2,0.001]
[1769692205430,0.002,2936.6,2936.2,0.001]
[1769692212049,1.32589738,2936.6,2936.0,0.001]
[1769692214147,0.85135365,2936.5,2936.0,0.001]
[1769692218161,0.85135365,2936.5,2936.0,1.69543026]
[1769692218464,0.85135365,2936.5,2936.2,0.001]
[1769692218666,0.002,2936.6,2936.0,1.69543026]
[1769692219634,0.714,2936.5,2936.0,1.69543026]
[1769692222760,1.56537506,2936.5,2936.0,1.69543026]
[1769692225671,1.56537506,2936.5,2936.0,0.001]
[1769692230189,1.56537506,2936.5,2936.2,0.001]
[1769692230351,0.002,2936.3,2936.2,0.001]
[1769692232180,0.002,2936.3,2936.0,0.001]
[1769692233085,0.002,2936.3,2935.6,1.53431147]
[1769692234888,1.22527126,2936.3,2935.3,1.53331147]
[1769692235075,1.22327126,2936.0,2935.1,1.53331147]
[1769692235386,0.714,2935.9,2935.1,1.53331147]
[1769692237200,1.56555629,2935.9,2935.1,1.53331147]
[1769692240693,0.714,2935.8,2935.1,1.53331147]
[1769692242372,0.85158565,2935.7,2935.1,1.53331147]
[1769692244605,0.714,2935.6,2935.4,1.53331147]
[1769692246210,0.714,2935.6,2935.3,0.002]
[1769692246408,1.56563593,2935.6,2935.3,0.002]
[1769692248707,0.85163593,2935.6,2935.3,0.002]
[1769692248914,0.714,2935.5,2935.3,0.002]
[1769692253916,0.001,2935.7,2935.3,0.002]
[1769692254092,0.715,2935.7,2935.3,1.53531147]
[1769692257018,0.001,2935.5,2935.3,1.53531147]
[1769692261201,0.715,2935.7,2935.3,1.53531147]
[1769692262498,0.85151166,2936.0,2935.3,1.53531147]
[1769692262699,0.85342819,2936.3,2935.5,1.4955123]
[1769692262919,0.714,2936.2,2935.5,1.4955123]
[1769692263696,0.714,2936.2,2935.6,1.4955123]
[1769692266419,0.002,2936.3,2935.7,1.4955123]
[1769692267923,0.002,2936.3,2935.7,2.34709622]
[1769692268126,0.002,2936.3,2935.8,1.4955123]
[1769692268521,0.002,2936.5,2935.8,1.4955123]
[1769692269219,0.002,2936.1,2935.8,1.4955123]
[1769692269427,0.002,2936.3,2935.8,1.4955123]
[1769692271238,0.002,2936.3,2935.8,2.34706839]
[1769692272028,0.002,2936.3,2935.8,1.4955123]
[1769692272230,0.002,2936.3,2935.8,2.34706686]
[1769692274144,0.002,2936.3,2935.9,1.4955123]
[1769692277757,0.002,2936.3,2935.7,2.34706989]
[1769692277927,0.002,2936.3,2935.8,0.85155421]
[1769692280847,0.002,2936.3,2935.7,4.9018368]
[1769692281751,0.002,2936.1,2935.7,4.9018368]
[1769692283348,0.002,2936.1,2935.5,1.4955123]
[1769692283549,0.002,2936.1,2935.7,0.85156602]
[1769692285238,0.002,2936.1,2935.5,3.40650399]
[1769692285444,0.002,2936.1,2935.5,4.9405258]
[1769692288549,0.002,2936.1,2935.5,3.40650399]
[1769692288746,1.60466124,2936.1,2935.3,1.53602181]
[1769692288951,1.60466124,2936.1,2935.3,0.002]
[1769692289441,0.85149863,2936.0,2935.3,0.002]
[1769692289628,1.60266124,2935.9,2935.3,0.002]
[1769692291753,2.45419569,2935.9,2935.3,0.002]
[1769692292160,1.47887472,2935.7,2935.3,0.002]
[1769692292564,1.47887472,2935.7,2935.0,0.001]
[1769692293243,1.47887472,2935.7,2935.5,0.001]
[1769692293443,1.47887472,2935.7,2935.0,0.001]
[1769692293843,1.47887472,2935.5,2935.0,0.001]
[1769692297372,2.33047623,2935.7,2935.0,0.001]
[1769692298050,0.85160151,2935.7,2935.0,0.001]
[1769692298253,1.47887472,2935.6,2935.0,0.001]
[1769692298477,0.714,2935.8,2935.0,1.55630671]
[1769692299061,1.56558141,2935.8,2935.0,0.001]
[1769692299270,1.47887472,2935.7,2935.0,0.001]
[1769692301185,2.33046657,2935.7,2935.0,0.001]
[1769692302674,1.47887472,2935.6,2935.0,0.001]
[1769692303046,0.85164367,2935.5,2935.0,0.001]
[1769692304846,0.85164367,2935.5,2935.2,0.002]
[1769692305060,0.85264367,2935.5,2935.2,0.002]
[1769692305455,0.001,2935.5,2935.2,0.002]
[1769692315890,1.56782723,2935.5,2935.2,0.002]
[1769692317491,1.56782723,2935.5,2935.4,0.002]
[1769692317689,2.4194709,2935.5,2935.2,0.002]
[1769692317990,1.56682723,2935.4,2935.2,0.002]
[1769692319865,0.85170169,2935.3,2935.2,0.002]
[1769692320078,0.85170169,2935.3,2935.1,0.002]
[1769692321192,0.85170169,2935.3,2935.0,0.001]
[1769692321991,2.41852892,2935.3,2935.0,0.001]
[1769692325222,0.85170169,2935.3,2935.0,0.001]
[1769692326825,2.41852892,2935.3,2935.0,0.001]
[1769692327187,2.41852892,2935.3,2934.8,0.001]
[1769692328319,2.41852892,2935.3,2934.4,1.63045367]
[1769692330312,2.41852892,2935.3,2935.0,0.002]
[1769692330688,0.85170169,2935.3,2935.0,0.002]
[1769692331129,0.85170169,2935.3,2934.5,1.63045367]
[1769692331992,2.41852892,2935.3,2934.5,1.63045367]
[1769692332622,2.41852892,2935.3,2934.3,1.63045367]
[1769692334431,1.56682723,2935.2,2934.3,1.63045367]
[1769692334915,1.56682723,2935.2,2933.9,1.63045367]
[1769692335230,1.56682723,2935.0,2933.9,1.63045367]
[1769692335909,1.56682723,2935.0,2933.8,1.63245367]
[1769692336110,1.56682723,2934.8,2933.8,1.63245367]
[1769692336309,0.714,2934.7,2933.8,1.63245367]
[1769692336508,2.28082723,2934.7,2933.8,1.63245367]
[1769692337806,0.27540978,2934.6,2933.8,1.63245367]
[1769692338132,0.85193388,2934.5,2933.8,1.63245367]
[1769692340729,0.714,2935.0,2934.0,1.63045367]
[1769692341528,0.85181777,2934.9,2934.0,1.63045367]
[1769692342033,0.85181777,2934.9,2934.0,1.63245367]
[1769692342926,0.85181777,2934.9,2934.1,1.63045367]
[1769692344934,0.85180217,2935.0,2934.3,1.63045367]
[1769692345731,0.21192784,2935.1,2934.3,1.63045367]
[1769692346732,0.21192784,2935.1,2934.6,1.57654594]
[1769692347114,0.21192784,2935.1,2934.7,1.57654594]
[1769692350138,0.21192784,2935.1,2934.5,2.42845875]
[1769692350437,0.21192784,2935.1,2934.5,2.4284784]
[1769692351421,0.21192784,2935.1,2934.6,0.85189076]
[1769692351746,0.21192784,2935.1,2934.5,1.57654594]
[1769692351747,0.001,2935.5,2934.8,1.57654594]
[1769692351950,0.001,2935.5,2934.9,2.42932194]
[1769692354632,0.001,2935.3,2934.9,2.42932194]
[1769692354936,0.001,2935.5,2934.9,2.42932194]
[1769692361639,0.001,2935.5,2934.9,0.85181777]
[1769692362033,1.57826182,2935.5,2934.9,0.85181777]
[1769692362233,1.57826182,2935.5,2934.6,0.85190485]
[1769692363617,1.57826182,2935.5,2934.7,1.57750417]
[1769692364645,0.001,2935.5,2934.8,0.8518468]
[1769692365415,0.001,2935.5,2934.8,2.42935097]
[1769692366247,0.001,2935.5,2934.9,0.002]
[1769692366563,0.001,2935.3,2934.9,0.002]
[1769692369359,0.001,2935.3,2934.9,1.57950417]
[1769692372538,0.001,2935.3,2935.0,0.85178875]
[1769692374654,0.001,2935.3,2934.9,0.002]
[1769692379785,0.001,2935.3,2935.1,0.002]
[1769692380355,1.65836185,2935.3,2934.9,0.002]
[1769692388602,0.001,2935.3,2934.9,0.002]
[1769692389797,1.65836185,2935.3,2934.9,0.002]
[1769692392899,1.65836185,2935.3,2935.1,0.002]
[1769692398314,0.001,2935.3,2935.1,0.002]
[1769692399012,1.65836185,2935.3,2935.1,0.002]
[1769692409499,0.001,2935.3,2935.1,0.002]
[1769692414033,1.69811653,2935.3,2935.1,0.002]
[1769692416630,0.001,2935.3,2935.1,0.002]
[1769692420533,1.69811653,2935.3,2935.1,0.002]
[1769692423637,0.001,2935.3,2935.1,0.002]
[1769692444984,0.1202619,2935.4,2935.1,0.002]
[1769692446043,0.1202619,2935.4,2935.1,1.63629815]
[1769692446266,0.001,2935.5,2935.1,1.63629815]
[1769692447173,0.001,2935.5,2935.1,2.48805573]
[1769692449069,0.001,2935.5,2935.1,1.63629815]
[1769692449271,0.001,2935.5,2935.1,0.002]
[1769692452389,0.001,2935.5,2935.3,0.002]
[1769692479112,1.69837258,2935.5,2935.3,0.002]
[1769692479315,1.69837258,2935.5,2935.1,0.002]
[1769692487144,0.001,2935.5,2935.1,0.002]
[1769692488643,0.001,2935.5,2935.3,0.001]
[1769692496321,3.3517805,2935.9,2935.3,0.001]
[1769692497522,2.50023758,2935.9,2935.3,0.001]
[1769692498150,3.35176628,2935.9,2935.3,0.001]
[1769692498723,2.50023758,2935.9,2935.3,0.001]
[1769692498948,3.35176781,2935.9,2935.3,0.001]
[1769692499524,2.50023758,2935.9,2935.3,0.001]
[1769692500139,0.714,2935.9,2935.3,0.001]
[1769692500326,1.56552782,2935.9,2935.3,0.001]
[1769692500527,1.78623758,2935.8,2935.3,0.001]
[1769692500727,1.78823758,2935.7,2935.3,0.001]
[1769692512287,1.78623758,2935.6,2935.3,0.001]
[1769692512436,1.78623758,2935.6,2935.1,0.002]
[1769692513359,1.78623758,2935.6,2935.5,0.001]
[1769692513559,1.78623758,2935.6,2935.1,0.002]
[1769692513764,0.002,2935.5,2935.1,0.002]
[1769692525360,0.002,2935.5,2935.3,0.002]
[1769692552608,1.77704934,2935.5,2935.3,0.002]
[1769692552811,1.77704934,2935.5,2935.1,0.002]
[1769692556186,0.002,2935.5,2935.1,0.002]
[1769692557019,0.002,2935.5,2935.1,0.13835054]
[1769692560411,1.80753641,2935.5,2935.1,0.13835054]
[1769692560606,1.80753641,2935.5,2935.3,0.001]
[1769692560824,1.80753641,2935.5,2935.0,0.002]
[1769692560999,1.80753641,2935.3,2935.0,0.002]
[1769692562318,2.65923922,2935.3,2935.0,0.002]
[1769692562527,1.80553641,2935.2,2934.0,0.85405879]
[1769692562696,1.94388695,2935.2,2934.4,0.13835054]
[1769692563013,1.94388695,2935.2,2934.0,0.85405879]
[1769692563014,1.80553641,2935.2,2934.0,0.002]
[1769692563219,1.80553641,2935.0,2934.1,0.85405879]
[1769692563609,1.80553641,2934.8,2934.0,0.85407808]
[1769692563931,1.80553641,2934.8,2934.0,0.85605879]
[1769692564531,1.80553641,2934.6,2934.0,0.85605879]
[1769692564900,1.80553641,2934.6,2934.0,1.70812765]
[1769692565712,0.08785518,2934.7,2934.0,1.70812765]
[1769692568912,0.08785518,2934.7,2934.0,3.50818895]
[1769692571306,0.08785518,2934.7,2934.1,1.8000613]
[1769692572836,0.0128217,2934.7,2934.4,0.002]
[1769692582231,1.81835811,2934.7,2934.4,0.002]
[1769692585326,1.81835811,2934.7,2934.6,0.002]
[1769692585525,1.80553641,2934.7,2934.4,0.002]
[1769692587725,1.80553641,2934.7,2934.2,0.002]
[1769692594669,0.14922106,2934.9,2934.2,0.002]
[1769692595034,0.714,2934.8,2934.2,0.85402099]
[1769692595346,0.714,2934.8,2934.2,0.002]
[1769692597265,0.714,2934.8,2934.4,0.002]
[1769692598842,2.50172358,2934.8,2934.4,0.002]
[1769692601888,2.4300802,2934.8,2934.4,0.002]
[1769692609401,0.001,2934.6,2934.4,0.002]
[1769692631906,1.75694234,2934.6,2934.4,0.002]
[1769692632210,0.001,2934.6,2934.4,0.002]
[1769692635489,1.75694234,2934.6,2934.4,0.002]
[1769692637702,1.75694234,2934.6,2934.2,0.002]
[1769692637905,1.82658572,2934.6,2934.2,0.002]
[1769692641918,2.67849318,2934.6,2934.2,0.002]
[1769692642111,0.92255084,2934.6,2934.2,0.002]
[1769692642285,1.75594234,2934.5,2934.2,0.002]
[1769692643313,0.07064338,2934.6,2934.2,0.002]
[1769692645917,0.07064338,2934.6,2934.4,0.002]
[1769692649014,1.88095999,2934.6,2934.2,0.002]
[1769692649692,0.07064338,2934.6,2934.2,0.002]
[1769692658615,0.07064338,2934.6,2934.4,0.002]
[1769692698372,1.73789569,2935.1,2934.4,0.002]
[1769692698578,0.85174807,2935.2,2934.4,1.82519363]
[1769692698774,1.56574807,2935.2,2934.4,1.82519363]
[1769692703450,1.56573127,2935.2,2934.5,0.85193388]
[1769692703652,1.73789569,2935.1,2934.4,0.85394364]
[1769692705374,1.73789569,2935.1,2934.6,0.002]
[1769692705682,0.001,2935.0,2934.6,0.002]
[1769692709016,1.79376291,2935.0,2934.6,0.002]
[1769692712721,1.79376291,2935.0,2934.1,3.4101591]
[1769692712722,1.75428026,2934.8,2934.1,0.002]
[1769692714818,1.75428026,2934.6,2934.1,0.002]
[1769692718317,1.75428026,2934.6,2934.3,0.002]
[1769692724820,0.85281103,2935.0,2934.3,1.7167656]
[1769692725024,0.714,2934.9,2934.3,1.7167656]
[1769692726301,3.32010798,2934.9,2934.3,0.002]
[1769692731420,0.001,2934.7,2934.3,0.002]
[1769692737348,1.75921527,2934.7,2934.1,0.002]
[1769692742253,0.001,2934.7,2934.1,0.002]
[1769692742432,0.001,2934.7,2934.1,1.7702321]
[1769692742634,0.001,2934.5,2934.1,1.7702321]
[1769692745184,0.001,2934.5,2934.1,0.002]
[1769692746932,0.001,2934.5,2934.1,0.85404884]
[1769692747170,0.001,2934.5,2934.1,0.002]
[1769692754769,0.001,2934.5,2934.3,0.002]
[1769692784201,0.13640634,2935.2,2934.3,6.8237711]
[1769692784500,7.18371022,2935.3,2934.4,1.7453974]
[1769692785199,8.98431002,2935.3,2934.4,1.7453974]
[1769692786693,8.1325998,2935.3,2934.5,0.85193388]
[1769692786884,6.332,2935.3,2934.6,1.7453974]
[1769692787084,0.002,2935.3,2934.6,1.7453974]
[1769692789128,0.002,2935.3,2934.7,0.85187583]
[1769692790708,0.001,2935.1,2934.7,0.85187583]
[1769692799718,1.71060821,2935.1,2934.7,0.85187583]
[1769692801023,1.71060821,2935.1,2934.4,0.85196292]
[1769692802326,1.71060821,2935.1,2934.9,0.002]
[1769692804328,1.71060821,2935.1,2934.6,0.002]
[1769692805430,1.70960821,2935.0,2934.3,0.85397285]
[1769692806431,1.70960821,2935.0,2934.3,0.002]
[1769692810032,0.001,2935.1,2934.3,1.82565138]
[1769692810207,1.71060821,2935.1,2934.3,1.82565138]
[1769692811932,1.71060821,2935.1,2934.4,0.85196292]
[1769692815636,1.71060821,2935.1,2934.5,0.002]
[1769692815845,0.001,2934.9,2934.5,0.002]
[1769692822951,1.71060821,2934.9,2934.5,0.002]
[1769692824250,0.001,2934.9,2934.5,0.002]
[1769692827922,0.001,2934.7,2934.5,0.002]
[1769692833338,1.7067664,2934.7,2934.5,0.002]
[1769692835539,0.001,2934.7,2934.5,0.002]
[1769692842195,0.001,2934.9,2934.5,0.002]
[1769692842563,1.7077664,2935.3,2934.6,5.07499114]
[1769692842764,1.7077664,2935.3,2934.6,6.84119164]
[1769692842765,0.002,2935.3,2934.6,6.84119164]
[1769692844177,0.002,2935.3,2934.7,0.85187583]
[1769692844854,1.7077664,2935.3,2934.6,0.85189665]
[1769692846960,1.7077664,2935.3,2934.5,3.40970613]
[1769692850890,1.7077664,2935.3,2934.5,5.17590663]
[1769692851596,0.001,2935.1,2934.5,5.17590663]
[1769692854774,0.001,2935.1,2934.5,3.40970613]
[1769692857099,0.002,2935.5,2934.9,5.07499114]
[1769692858403,0.002,2935.5,2934.7,1.76578062]
[1769692859318,0.002,2935.5,2934.8,0.8518468]
[1769692861015,1.75058768,2935.5,2934.8,0.8518468]
[1769692861420,1.75058768,2935.5,2934.5,0.002]
[1769692862004,1.75058768,2935.5,2934.6,5.07499114]
[1769692862215,0.002,2935.5,2934.7,1.76578062]
[1769692862504,0.002,2935.5,2934.9,6.84077176]
[1769692862804,0.002,2935.5,2934.7,1.76578062]
[1769692863178,0.002,2935.5,2934.7,1.76778062]
[1769692863377,0.001,2935.3,2934.7,1.76778062]
[1769692863891,0.001,2935.3,2934.8,0.8518468]
[1769692865107,0.001,2935.3,2934.8,2.61762742]
[1769692865306,0.001,2935.3,2934.8,0.8518468]
[1769692865682,0.001,2935.3,2934.7,0.85385367]
[1769692865881,1.74958768,2935.3,2934.7,0.002]
[1769692875330,1.74958768,2935.3,2934.9,0.002]
[1769692876993,1.74958768,2935.3,2934.9,0.00199977]
[1769692881719,1.74958768,2935.3,2934.7,0.002]
[1769692882125,0.85271,2935.3,2934.7,0.002]
[1769692882429,1.74858768,2935.2,2934.7,0.002]
[1769692882727,1.74858768,2935.2,2934.5,0.002]
[1769692883940,0.714,2935.1,2934.5,0.002]
[1769692884812,1.74858768,2935.2,2934.5,0.002]
[1769692885694,0.001,2935.3,2934.6,5.07499114]
[1769692886224,0.001,2935.3,2934.6,5.92688393]
[1769692886424,0.001,2935.3,2934.6,7.60848978]
[1769692887262,0.002,2935.1,2934.6,7.60848978]
[1769692889009,0.001,2935.3,2934.7,1.68160585]
[1769692891813,0.001,2935.3,2934.8,0.8518468]
[1769692892226,0.002,2935.5,2934.8,2.63458317]
[1769692896255,0.002,2935.5,2934.8,1.78273637]